fUSD/lending_fUSD_20250417
["ID","MTS","AMOUNT","RATE_DAILY","PERIOD"]
[358268798,1744884667889,-650.0,0.00065753,120]
[358268799,1744884667899,-292.272244,0.00065753,120]
[358268800,1744884667909,-500.0,0.00065753,120]
[358268801,1744884667919,-593.42,0.00065753,120]
[358268802,1744884667928,-919.76,0.00065753,120]
[358268803,1744884667937,-783.78,0.00065753,120]
[358268804,1744884667948,-500.0,0.00065753,30]
[358268805,1744884667959,-853.26,0.00065753,120]
[358268806,1744884667969,-500.0,0.00065753,120]
[358268807,1744884667979,-500.0,0.00065753,120]
[358268808,1744884667988,-500.0,0.00065753,120]
[358268809,1744884667997,-50000.0,0.00066,66]
[358268810,1744884668007,-990.0,0.00066,120]
[358268811,1744884668016,-185.18,0.0006665,2]
[358268812,1744884668025,-150.0,0.000667,120]
[358268813,1744884668038,-150.0,0.000667,120]
[358268814,1744884668048,-540.36,0.00066849,120]
[358268815,1744884668057,-500.0,0.00066849,120]
[358268816,1744884668066,-500.0,0.00066849,120]
[358268817,1744884668075,-1247.03,0.00066849,120]
[358268818,1744884668084,-500.0,0.00066849,120]
[358268819,1744884668094,-613.2,0.00066849,120]
[358268820,1744884668103,-500.0,0.00066849,120]
[358268821,1744884668113,-500.0,0.00066849,120]
[358268822,1744884668123,-500.0,0.00066849,120]
[358268823,1744884668133,-500.0,0.00066849,120]
[358268824,1744884668143,-1350.14,0.00066849,120]
[358268825,1744884668219,-500.0,0.00066849,120]
[358268826,1744884668234,-520.56,0.00066849,120]
[358268827,1744884668243,-13912.12,0.00066849,7]
[358268828,1744884668253,-502.27,0.00066849,120]
[358268829,1744884668262,-223.8,0.00066849,120]
[358268830,1744884668274,-500.0,0.00066849,120]
[358268831,1744884668285,-594.06,0.00066849,120]
[358268832,1744884668295,-7351.09,0.00066849,120]
[358268833,1744884668304,-800.0,0.00066849,120]
[358268834,1744884668314,-488.93,0.00066849,120]
[358268835,1744884668323,-650.0,0.00066849,120]
[358268836,1744884668332,-500.0,0.00066849,120]
[358268837,1744884668342,-593.42,0.00066849,120]
[358268838,1744884668351,-919.76,0.00066849,120]
[358268839,1744884668365,-783.78,0.00066849,120]
[358268840,1744884668373,-307.04338384,0.00066849,30]
[358268841,1744884668382,-853.26,0.00066849,120]
[358268842,1744884668390,-500.0,0.00066849,120]
[358268843,1744884668399,-500.0,0.00066849,120]
[358268844,1744884668408,-500.0,0.00066849,120]
[358268845,1744884668417,-50000.0,0.00067,67]
[358268846,1744884668426,-2000.0,0.00067394,12]
[358268847,1744884668436,-6318.3773457,0.000674,2]
[358268848,1744884668445,-1000000.0,0.000675,120]
[358268849,1744884668454,-165.67323406,0.000675,30]
[358268850,1744884668463,-150.0,0.000677,120]
[358268851,1744884668473,-150.0,0.000677,120]
[358268852,1744884668482,-540.36,0.00067945,120]
[358268853,1744884668492,-500.0,0.00067945,120]
[358268854,1744884668502,-500.0,0.00067945,120]
[358268855,1744884668511,-1247.03,0.00067945,120]
[358268856,1744884668520,-500.0,0.00067945,120]
[358268857,1744884668530,-613.2,0.00067945,120]
[358268858,1744884668539,-500.0,0.00067945,120]
[358268859,1744884668549,-500.0,0.00067945,120]
[358268860,1744884668558,-500.0,0.00067945,120]
[358268861,1744884668567,-500.0,0.00067945,120]
[358268862,1744884668577,-1350.14,0.00067945,120]
[358268863,1744884668586,-500.0,0.00067945,120]
[358268864,1744884668595,-520.56,0.00067945,120]
[358268865,1744884668605,-13912.12,0.00067945,7]
[358268866,1744884668615,-502.27,0.00067945,120]
[358268867,1744884668624,-500.0,0.00067945,120]
[358268868,1744884668633,-594.06,0.00067945,120]
[358268869,1744884668642,-7351.09,0.00067945,120]
[358268870,1744884668652,-800.0,0.00067945,120]
[358268871,1744884668661,-650.0,0.00067945,120]
[358268872,1744884668671,-276.24396652,0.00067945,120]
[358268873,1744884668681,-593.42,0.00067945,120]
[358268874,1744884668690,-919.76,0.00067945,120]
[358268875,1744884668699,-783.78,0.00067945,120]
[358268876,1744884668709,-853.26,0.00067945,120]
[358268877,1744884668718,-500.0,0.00067945,120]
[358268878,1744884668727,-500.0,0.00067945,120]
[358268879,1744884668737,-500.0,0.00067945,120]
[358268880,1744884668747,-50000.0,0.00068,68]
[358268881,1744884668756,-150.0,0.00068,120]
[358268882,1744884668766,-1000.0,0.00068,120]
[358268883,1744884668775,-300.0,0.0006817,90]
[358268884,1744884668785,-400.0,0.0006817,90]
[358268885,1744884668794,-613.76160282,0.00068193,30]
[358268886,1744884668804,-537.6845,0.00068493,62]
[358268887,1744884668813,-557.5788265,0.00068493,120]
[358268888,1744884668823,-150.0,0.000687,120]
[358268889,1744884668832,-150.0,0.000687,120]
[358268890,1744884668842,-161.14,0.00068869,120]
[358268891,1744884668851,-185.18,0.00068914,2]
[358268892,1744884668860,-50000.0,0.00069,69]
[358268893,1744884668871,-540.36,0.00069041,120]
[358268894,1744884668880,-383.52984121,0.00069041,120]
[358268895,1744884668890,-500.0,0.00069041,120]
[358268896,1744884668899,-1247.03,0.00069041,120]
[358268897,1744884668910,-500.0,0.00069041,120]
[358268898,1744884668919,-613.2,0.00069041,120]
[358268899,1744884668928,-500.0,0.00069041,120]
[358268900,1744884668938,-500.0,0.00069041,120]
[358268901,1744884668949,-500.0,0.00069041,120]
[358268902,1744884668958,-481.91971745,0.00069041,120]
[358268903,1744884668968,-1350.14,0.00069041,120]
[358268904,1744884668978,-500.0,0.00069041,120]
[358268905,1744884668987,-520.56,0.00069041,120]
[358268906,1744884668996,-13912.12,0.00069041,7]
[358268907,1744884669005,-502.27,0.00069041,120]
[358268908,1744884669016,-240.63,0.00069041,120]
[358268909,1744884669025,-594.06,0.00069041,120]
[358268910,1744884669035,-7351.09,0.00069041,120]
[358268911,1744884669044,-800.0,0.00069041,120]
[358268912,1744884669053,-650.0,0.00069041,120]
[358268913,1744884669063,-593.42,0.00069041,120]
[358268914,1744884669074,-919.76,0.00069041,120]
[358268915,1744884669084,-783.78,0.00069041,120]
[358268916,1744884669095,-853.26,0.00069041,120]
[358268917,1744884669104,-500.0,0.00069041,120]
[358268918,1744884669114,-520.69294312,0.00069041,120]
[358268919,1744884669125,-500.0,0.00069041,120]
[358268920,1744884669135,-500.0,0.00069384,120]
[358268921,1744884669145,-150.0,0.000697,120]
[358268922,1744884669155,-150.0,0.000697,120]
[358268923,1744884669165,-50000.0,0.0007,70]
[358268924,1744884669175,-1000000.0,0.0007,120]
[358268925,1744884669184,-540.36,0.00070136,120]
[358268926,1744884669194,-500.0,0.00070136,120]
[358268927,1744884669203,-1247.03,0.00070136,120]
[358268928,1744884669213,-500.0,0.00070136,120]
[358268929,1744884669222,-613.2,0.00070136,120]
[358268930,1744884669232,-500.0,0.00070136,120]
[358268931,1744884669241,-500.0,0.00070136,120]
[358268932,1744884669251,-500.0,0.00070136,120]
[358268933,1744884669261,-1350.14,0.00070136,120]
[358268934,1744884669272,-500.0,0.00070136,120]
[358268935,1744884669281,-520.56,0.00070136,120]
[358268936,1744884669292,-13912.12,0.00070136,7]
[358268937,1744884669301,-502.27,0.00070136,120]
[358268938,1744884669311,-594.06,0.00070136,120]
[358268939,1744884669321,-7351.09,0.00070136,120]
[358268940,1744884669331,-800.0,0.00070136,120]
[358268941,1744884669340,-650.0,0.00070136,120]
[358268942,1744884669350,-593.42,0.00070136,120]
[358268943,1744884669360,-919.76,0.00070136,120]
[358268944,1744884669370,-783.78,0.00070136,120]
[358268945,1744884669380,-853.26,0.00070136,120]
[358268946,1744884669390,-500.0,0.00070136,120]
[358268947,1744884669399,-500.0,0.00070136,120]
[358268948,1744884669409,-247.0,0.000707,120]
[358268949,1744884669419,-247.0,0.000707,120]
[358268950,1744884669428,-185.18,0.00071178,2]
[358268951,1744884669438,-540.36,0.00071232,120]
[358268952,1744884669520,-500.0,0.00071232,120]
[358268953,1744884669531,-1247.03,0.00071232,120]
[358268954,1744884669540,-500.0,0.00071232,120]
[358268955,1744884669549,-613.2,0.00071232,120]
[358268956,1744884669558,-500.0,0.00071232,120]
[358268957,1744884669567,-500.0,0.00071232,120]
[358268958,1744884669576,-500.0,0.00071232,120]
[358268959,1744884669586,-1350.14,0.00071232,120]
[358268960,1744884669596,-500.0,0.00071232,120]
[358268961,1744884669605,-520.56,0.00071232,120]
[358268962,1744884669615,-13912.12,0.00071232,7]
[358268963,1744884669624,-502.27,0.00071232,120]
[358268964,1744884669633,-594.06,0.00071232,120]
[358268965,1744884669643,-7351.09,0.00071232,120]
[358268966,1744884669652,-800.0,0.00071232,120]
[358268967,1744884669662,-650.0,0.00071232,120]
[358268968,1744884669671,-593.42,0.00071232,120]
[358268969,1744884669680,-919.76,0.00071232,120]
[358268970,1744884669690,-783.78,0.00071232,120]
[358268971,1744884669699,-853.26,0.00071232,120]
[358268972,1744884669708,-500.0,0.00071232,120]
[358268973,1744884669718,-500.0,0.00071232,120]
[358268974,1744884669727,-2000.0,0.0007147,12]
[358268975,1744884669737,-200.0,0.000719,26]
[358268976,1744884669747,-540.36,0.00072328,120]
[358268977,1744884669757,-500.0,0.00072328,120]
[358268978,1744884669766,-1247.03,0.00072328,120]
[358268979,1744884669776,-500.0,0.00072328,120]
[358268980,1744884669786,-613.2,0.00072328,120]
[358268981,1744884669795,-500.0,0.00072328,120]
[358268982,1744884669805,-500.0,0.00072328,120]
[358268983,1744884669814,-500.0,0.00072328,120]
[358268984,1744884669824,-1350.14,0.00072328,120]
[358268985,1744884669833,-500.0,0.00072328,120]
[358268986,1744884669843,-520.56,0.00072328,120]
[358268987,1744884669852,-13912.12,0.00072328,7]
[358268988,1744884669862,-502.27,0.00072328,120]
[358268989,1744884669875,-594.06,0.00072328,120]
[358268990,1744884669884,-7351.09,0.00072328,120]
[358268991,1744884669894,-800.0,0.00072328,120]
[358268992,1744884669904,-650.0,0.00072328,120]
[358268993,1744884669915,-593.42,0.00072328,120]
[358268994,1744884669925,-919.76,0.00072328,120]
[358268995,1744884669934,-783.78,0.00072328,120]
[358268996,1744884669943,-853.26,0.00072328,120]
[358268997,1744884669954,-603.93,0.00072328,120]
[358268998,1744884669966,-500.0,0.00072328,120]
[358268999,1744884669975,-95324.3303183,0.0007245,6]
[358269000,1744884669985,-1000000.0,0.000725,120]
[358269001,1744884669993,-500.0,0.00072888,15]
[358269002,1744884670002,-540.36,0.00073424,120]
[358269003,1744884670012,-500.0,0.00073424,120]
[358269004,1744884670022,-1247.03,0.00073424,120]
[358269005,1744884670031,-500.0,0.00073424,120]
[358269006,1744884670041,-613.2,0.00073424,120]
[358269007,1744884670051,-500.0,0.00073424,120]
[358269008,1744884670060,-500.0,0.00073424,120]
[358269009,1744884670070,-500.0,0.00073424,120]
[358269010,1744884670079,-1350.14,0.00073424,120]
[358269011,1744884670089,-500.0,0.00073424,120]
[358269012,1744884670099,-520.56,0.00073424,120]
[358269013,1744884670108,-13912.12,0.00073424,7]
[358269014,1744884670118,-502.27,0.00073424,120]
[358269015,1744884670128,-594.06,0.00073424,120]
[358269016,1744884670138,-7351.09,0.00073424,120]
[358269017,1744884670147,-800.0,0.00073424,120]
[358269018,1744884670157,-650.0,0.00073424,120]
[358269019,1744884670167,-593.42,0.00073424,120]
[358269020,1744884670176,-919.76,0.00073424,120]
[358269021,1744884670185,-783.78,0.00073424,120]
[358269022,1744884670195,-853.26,0.00073424,120]
[358269023,1744884670205,-500.0,0.00073424,120]
[358269024,1744884670215,-185.18,0.00073442,2]
[358269025,1744884670225,-540.36,0.0007452,120]
[358269026,1744884670236,-500.0,0.0007452,120]
[358269027,1744884670246,-1247.03,0.0007452,120]
[358269028,1744884670257,-500.0,0.0007452,120]
[358269029,1744884670267,-613.2,0.0007452,120]
[358269030,1744884670278,-500.0,0.0007452,120]
[358269031,1744884670288,-500.0,0.0007452,120]
[358269032,1744884670298,-572.80631304,0.0007452,120]
[358269033,1744884670308,-1350.14,0.0007452,120]
[358269034,1744884670317,-500.0,0.0007452,120]
[358269035,1744884670326,-520.56,0.0007452,120]
[358269036,1744884670336,-13912.12,0.0007452,7]
[358269037,1744884670346,-502.27,0.0007452,120]
[358269038,1744884670356,-594.06,0.0007452,120]
[358269039,1744884670366,-7351.09,0.0007452,120]
[358269040,1744884670375,-800.0,0.0007452,120]
[358269041,1744884670385,-650.0,0.0007452,120]
[358269042,1744884670395,-593.42,0.0007452,120]
[358269043,1744884670404,-919.76,0.0007452,120]
[358269044,1744884670414,-783.78,0.0007452,120]
[358269045,1744884670424,-853.26,0.0007452,120]
[358269046,1744884670434,-293.3,0.0007452,120]
[358269047,1744884670443,-9672.3170779,0.00074949,7]
[358269048,1744884670453,-50000.0,0.00075,75]
[358269049,1744884670463,-1000000.0,0.00075,120]
[358269050,1744884670472,-180.80718569,0.00075,30]
[358269051,1744884670483,-2000.0,0.00075546,12]
[358269052,1744884670492,-540.36,0.00075616,120]
[358269053,1744884670504,-500.0,0.00075616,120]
[358269054,1744884670513,-1247.03,0.00075616,120]
[358269055,1744884670523,-500.0,0.00075616,120]
[358269056,1744884670532,-613.2,0.00075616,120]
[358269057,1744884670542,-500.0,0.00075616,120]
[358269058,1744884670552,-305.66198743,0.00075616,120]
[358269059,1744884670561,-1350.14,0.00075616,120]
[358269060,1744884670571,-478.4072,0.00075616,120]
[358269061,1744884670581,-520.56,0.00075616,120]
[358269062,1744884670591,-13912.12,0.00075616,7]
[358269063,1744884670602,-502.27,0.00075616,120]
[358269064,1744884670612,-594.06,0.00075616,120]
[358269065,1744884670621,-7351.09,0.00075616,120]
[358269066,1744884670631,-800.0,0.00075616,120]
[358269067,1744884670641,-650.0,0.00075616,120]
[358269068,1744884670717,-593.42,0.00075616,120]
[358269069,1744884670726,-919.76,0.00075616,120]
[358269070,1744884670736,-783.78,0.00075616,120]
[358269071,1744884670746,-853.26,0.00075616,120]
[358269072,1744884670755,-1800.574,0.00075705,120]
[358269073,1744884670764,-254.318,0.00075705,120]
[358269074,1744884670774,-185.18,0.00075706,2]
[358269075,1744884670783,-540.36,0.00076712,120]
[358269076,1744884670794,-355.3,0.00076712,120]
[358269077,1744884670804,-1247.03,0.00076712,120]
[358269078,1744884670813,-500.0,0.00076712,120]
[358269079,1744884670823,-613.2,0.00076712,120]
[358269080,1744884670833,-500.0,0.00076712,120]
[358269081,1744884670842,-1350.14,0.00076712,120]
[358269082,1744884670851,-520.56,0.00076712,120]
[358269083,1744884670860,-13912.12,0.00076712,7]
[358269084,1744884670875,-502.27,0.00076712,120]
[358269085,1744884670884,-594.06,0.00076712,120]
[358269086,1744884670894,-7351.09,0.00076712,120]
[358269087,1744884670903,-800.0,0.00076712,120]
[358269088,1744884670915,-650.0,0.00076712,120]
[358269089,1744884670924,-593.42,0.00076712,120]
[358269090,1744884670933,-919.76,0.00076712,120]
[358269091,1744884670942,-783.78,0.00076712,120]
[358269092,1744884670952,-853.26,0.00076712,120]
[358269093,1744884670962,-11255.95226985,0.00076986,120]
[358269094,1744884670972,-161.14,0.00077427,120]
[358269095,1744884670981,-1000000.0,0.000775,120]
[358269096,1744884670991,-540.36,0.00077808,120]
[358269097,1744884671001,-1247.03,0.00077808,120]
[358269098,1744884671011,-500.0,0.00077808,120]
[358269099,1744884671021,-613.2,0.00077808,120]
[358269100,1744884671031,-500.0,0.00077808,120]
[358269101,1744884671040,-1350.14,0.00077808,120]
[358269102,1744884671050,-520.56,0.00077808,120]
[358269103,1744884671060,-13912.12,0.00077808,7]
[358269104,1744884671070,-502.27,0.00077808,120]
[358269105,1744884671080,-594.06,0.00077808,120]
[358269106,1744884671089,-7351.09,0.00077808,120]
[358269107,1744884671099,-800.0,0.00077808,120]
[358269108,1744884671111,-650.0,0.00077808,120]
[358269109,1744884671120,-593.42,0.00077808,120]
[358269110,1744884671131,-919.76,0.00077808,120]
[358269111,1744884671141,-783.78,0.00077808,120]
[358269112,1744884671151,-853.26,0.00077808,120]
[358269113,1744884671161,-185.18,0.0007797,2]
[358269114,1744884671171,-540.36,0.00078904,120]
[358269115,1744884671181,-1247.03,0.00078904,120]
[358269116,1744884671190,-500.0,0.00078904,120]
[358269117,1744884671201,-613.2,0.00078904,120]
[358269118,1744884671211,-500.0,0.00078904,120]
[358269119,1744884671222,-1350.14,0.00078904,120]
[358269120,1744884671232,-520.56,0.00078904,120]
[358269121,1744884671251,-13912.12,0.00078904,7]
[358269122,1744884671269,-502.27,0.00078904,120]
[358269123,1744884671289,-594.06,0.00078904,120]
[358269124,1744884671310,-7351.09,0.00078904,120]
[358269125,1744884671327,-800.0,0.00078904,120]
[358269126,1744884671343,-650.0,0.00078904,120]
[358269127,1744884671363,-593.42,0.00078904,120]
[358269128,1744884671383,-919.76,0.00078904,120]
[358269129,1744884671402,-783.78,0.00078904,120]
[358269130,1744884671420,-853.26,0.00078904,120]
[358269131,1744884671436,-2000.0,0.00079621,12]
[358269132,1744884671455,-50000.0,0.0008,80]
[358269133,1744884671470,-1000000.0,0.0008,120]
[358269134,1744884671488,-540.54037501,0.0008,120]
[358269135,1744884671503,-1247.12323398,0.0008,120]
[358269136,1744884671518,-229.71455173,0.0008,120]
[358269137,1744884671534,-613.41200002,0.0008,120]
[358269138,1744884671549,-471.20960065,0.0008,120]
[358269139,1744884671564,-1350.31,0.0008,120]
[358269140,1744884671578,-2000000.0,0.0008,120]
[358269141,1744884671593,-520.78515499,0.0008,120]
[358269142,1744884671608,-13912.27585006,0.0008,7]
[358269143,1744884671622,-502.4635,0.0008,120]
[358269144,1744884671637,-594.07,0.0008,120]
[358269145,1744884671651,-7351.31216534,0.0008,120]
[358269146,1744884671666,-800.0,0.0008,120]
[358269147,1744884671680,-650.12,0.0008,120]
[358269148,1744884671694,-593.49494707,0.0008,120]
[358269149,1744884671709,-919.94814838,0.0008,120]
[358269150,1744884671724,-783.86319353,0.0008,120]
[358269151,1744884671739,-853.29758891,0.0008,120]
[358269152,1744884671753,-500.0,0.0008138,120]
[358269153,1744884671768,-6433.0,0.00081531,60]
[358269154,1744884671784,-1000000.0,0.000825,120]
[358269155,1744884671798,-500.0,0.00082813,120]
[358269156,1744884671814,-2000.0,0.00083697,16]
[358269157,1744884671829,-10645.2807469,0.00084942,11]
[358269158,1744884671843,-1000000.0,0.00085,120]
[358269159,1744884671859,-161.14,0.00085985,120]
[358269160,1744884671875,-104913.2539881,0.0008744,12]
[358269161,1744884671890,-1000000.0,0.000875,120]
[358269162,1744884671904,-518.5,0.00087671,35]
[358269163,1744884671920,-2000.0,0.00087773,16]
[358269164,1744884671935,-458.39378234,0.00089999,120]
[358269165,1744884671950,-616.54533397,0.00089999,120]
[358269166,1744884671965,-426.18047895,0.00089999,120]
[358269167,1744884671981,-239.39056217,0.00089999,120]
[358269168,1744884671996,-1000000.0,0.0009,120]
[358269169,1744884672012,-500.0,0.0009041,120]
[358269170,1744884672026,-500.0,0.0009041,120]
[358269171,1744884672042,-198.332468,0.0009041,120]
[358269172,1744884672056,-500.0,0.00090438,2]
[358269173,1744884672065,-2000.0,0.00091849,16]
[358269174,1744884672075,-1000000.0,0.000925,120]
[358269175,1744884672198,-1800.574,0.00092852,120]
[358269176,1744884672208,-254.317,0.00092852,120]
[358269177,1744884672217,-161.14,0.00094543,120]
[358269178,1744884672227,-849.0,0.000949,34]
[358269179,1744884672236,-1000000.0,0.00095,120]
[358269180,1744884672247,-2000.0,0.00095924,16]
[358269181,1744884672256,-11255.95226985,0.0009694,120]
[358269182,1744884672266,-1000000.0,0.000975,120]
[358269183,1744884672276,-500.0,0.00099589,120]
[358269184,1744884672287,-114502.1776578,0.00099932,16]
[358269185,1744884672297,-11618.2444159,0.00099932,16]
[358269186,1744884672308,-50000.0,0.001,100]
[358269187,1744884672317,-1000000.0,0.001,120]
[358269188,1744884672327,-150.0,0.001,120]
[358269189,1744884672337,-155.0,0.001,120]
[358269190,1744884672346,-5000.0,0.001,120]
[358269191,1744884672355,-2329688.52280874,0.001,120]
[358269192,1744884672366,-500.0,0.00101954,30]
[358269193,1744884672377,-200.0,0.00101954,30]
[358269194,1744884672387,-162.380719,0.00101954,30]
[358269195,1744884672396,-161.14,0.00103102,120]
[358269196,1744884672406,-1800.574,0.0011,120]
[358269197,1744884672415,-254.318,0.0011,120]
[358269198,1744884672425,-500.0,0.00113132,120]
[358269199,1744884672435,-502.0,0.00128384,2]
[358269200,1744884672444,-500.0,0.00130402,120]
[358269201,1744884672454,-500.0,0.00157455,120]
[358269202,1744884672463,-23878.90625822,0.00164713,30]
[358269203,1744884672474,-500.0,0.00167215,120]
[358269204,1744884672484,-500.0,0.00173458,120]
[358269205,1744884672494,-1327.0,0.00178978,120]
[358269206,1744884672504,-2048.0,0.00178978,120]
[358269207,1744884672514,-796.0,0.00178978,2]
[358269208,1744884672525,-907.0,0.00178978,120]
[358269209,1744884672536,-1279.0,0.00178978,120]
[358269210,1744884672545,-1438.0,0.00178978,120]
[358269211,1744884672555,-545.0,0.00178978,120]
[358269212,1744884672564,-575.0,0.00178978,120]
[358269213,1744884672574,-4251.178,0.00178978,120]
[358269214,1744884672584,-200.0,0.0018,120]
[358269215,1744884672594,-3967.0,0.00181076,120]
[358269216,1744884672603,-295.581,0.00181076,2]
[358269217,1744884672612,-159.727,0.00181076,120]
[358269218,1744884672622,-865.0,0.00181076,120]
[358269219,1744884672633,-1120.0,0.00181833,120]
[358269220,1744884672643,-581.76,0.00181978,120]
[358269221,1744884672652,-1288.0,0.00182285,120]
[358269222,1744884672662,-3967.0,0.00184076,120]
[358269223,1744884672672,-152.0,0.00184076,2]
[358269224,1744884672682,-853.0,0.00184076,120]
[358269225,1744884672692,-160.769,0.00187076,120]
[358269226,1744884672702,-5073.0707533,0.00189713,120]
[358269227,1744884672712,-596.52682411,0.00194898,120]
[358269228,1744884672722,-157.52,0.0019726,120]
[358269229,1744884672732,-157.52,0.0019726,120]
[358269230,1744884672741,-157.52,0.0019726,120]
[358269231,1744884672751,-89067.5467119,0.0019872,60]
[358269232,1744884672761,-2000.0,0.00199,120]
[358269233,1744884672770,-100000.0,0.002,120]
[358269234,1744884672780,-97600.8,0.002,120]
[358269235,1744884672790,-5000.0,0.002,120]
[358269236,1744884672800,-500.0,0.00200278,120]
[358269237,1744884672809,-500.0,0.00201523,120]
[358269238,1744884672819,-500.0,0.00217909,120]
[358269239,1744884672828,-500.0,0.00218687,120]
[358269240,1744884672837,-500.0,0.0023684,120]
[358269241,1744884672846,-300.0,0.00239121,120]
[358269242,1744884672856,-500.0,0.0024221,120]
[358269243,1744884672867,-2000.0,0.00245,120]
[358269244,1744884672879,-12191.64794312,0.00249,120]
[358269245,1744884672889,-60000.0,0.0025,120]
[358269246,1744884672899,-28270.80993416,0.0025,120]
[358269247,1744884672909,-8051.38650803,0.00257781,5]
[358269248,1744884672919,-100000.0,0.0026,120]
[358269249,1744884672929,-500.0,0.00262523,120]
[358269250,1744884672938,-20000.0,0.0027,120]
[358269251,1744884672949,-500.0,0.00271477,120]
[358269252,1744884672959,-199.69218131,0.00273972,120]
[358269253,1744884672969,-765.68704193,0.00273972,120]
[358269254,1744884672979,-500.0,0.00273972,120]
[358269255,1744884672990,-500.0,0.00273972,120]
[358269256,1744884673000,-500.0,0.00273972,120]
[358269257,1744884673010,-500.0,0.00273972,120]
[358269258,1744884673020,-500.0,0.00273972,120]
[358269259,1744884673030,-500.0,0.00273972,120]
[358269260,1744884673040,-500.0,0.00273972,120]
[358269261,1744884673049,-500.0,0.00273972,120]
[358269262,1744884673059,-500.0,0.00273972,120]
[358269263,1744884673069,-500.0,0.00273972,120]
[358269264,1744884673079,-500.0,0.00273972,120]
[358269265,1744884673087,-500.0,0.00273972,120]
[358269266,1744884673097,-500.0,0.00273972,120]
[358269267,1744884673106,-500.0,0.00273972,120]
[358269268,1744884673116,-500.0,0.00273972,120]
[358269269,1744884673125,-500.0,0.00273972,120]
[358269270,1744884673135,-500.0,0.00273972,120]
[358269271,1744884673144,-500.0,0.00273972,120]
[358269272,1744884673154,-603.24615042,0.00277052,120]
[358269273,1744884673164,-500.0,0.00277434,120]
[358269274,1744884673173,-100000.0,0.0028,120]
[358269275,1744884673183,-13554.9142112,0.0028,120]
[358269276,1744884673193,-100000.0,0.0028,120]
[358269277,1744884673202,-506.51240801,0.00284721,120]
[358269278,1744884673212,-633.6460528,0.00289559,120]
[358269279,1744884673222,-89067.5467119,0.00293406,90]
[358269280,1744884673232,-328.0,0.00298603,120]
[358269281,1744884673241,-76159.90958242,0.003,120]
[358269282,1744884673252,-5000.0,0.003,120]
[358269283,1744884673261,-100000.0,0.003,120]
[358269284,1744884673272,-3536.9817838,0.003,120]
[358269285,1744884673282,-32428.55724303,0.003,120]
[358269286,1744884673291,-1000.0,0.003,120]
[358269287,1744884673301,-100000.0,0.003,120]
[358269288,1744884673311,-6950.52238,0.003,120]
[358269289,1744884673320,-500.0,0.003,120]
[358269290,1744884673329,-5000.0,0.003,120]
[358269291,1744884673339,-807.60802564,0.00311578,120]
[358269292,1744884673348,-153.1506557,0.003144,120]
[358269293,1744884673358,-500.0,0.00318806,120]
[358269294,1744884673367,-881.66783432,0.00319086,120]
[358269295,1744884673378,-1147.71366965,0.00320054,120]
[358269296,1744884673390,-153.63,0.003217,87]
[358269297,1744884673401,-153.63,0.003217,87]